Cogmind - Beta 9.2 @@@ ROGUE MODE // 2019.12.14 @ 02:57:21 Player: ptdel Result: Destroyed by as-66817 with Assembled Rifle Performance ------------- Evolutions (0) 0 Regions Visited (2) 400 Robots Destroyed (24) 120 Value Destroyed (254) 254 Prototype IDs (0) 0 Alien Tech Used (0) 0 Bonus (0) 0 TOTAL SCORE: 774 Bonus ------- None Cogmind --------- Core Integrity 0/250 Matter 7/300 Energy 100/100 System Corruption 3% Temperature Cool (0) Movement Core (800) Ox15 Location -10/Mines Parts ------- > --- POWER (1) -------- (None) > --- PROPULSION (2) --- (None) > --- UTILITY (2) ------ Large Storage Unit High-capacity Storage Unit > --- WEAPON (2) ------- (None) > --- INVENTORY (18) --- Ion Engine Light Ion Engine Light Ion Engine Wheel Experimental Sensor Array Improved Signal Interpreter Improved Signal Interpreter Improved Signal Interpreter Improved Signal Interpreter Improved Light Cannon Improved Light Cannon Improved Light Cannon Datajack Mining Laser Mining Laser Peak State ------------ > --- POWER ------------ Ion Engine > --- PROPULSION ------- Light Treads Light Treads > --- UTILITY ---------- Small Storage Unit High-capacity Storage Unit > --- WEAPON ----------- Medium Laser Small Laser > --- INVENTORY -------- Ion Engine Light Ion Engine Improved Signal Interpreter Improved Signal Interpreter Improved Signal Interpreter Improved Signal Interpreter Assault Rifle Improved Light Cannon Improved Light Cannon Improved Light Cannon Improved Light Cannon Grenade Launcher [Rating: 9] Favorites ----------- Power Ion Engine Engine Ion Engine Propulsion Light Treads Treads Light Treads Utility High-capacity Storage Unit Storage High-capacity Storage Unit Weapon Assault Rifle Energy Gun Small Laser Ballistic Gun Assault Rifle Ballistic Cannon Improved Light Cannon Launcher Grenade Launcher Build | -11 -10 -10 ------- Run | Scr Mat Min Slots Evolved . | . . . Power . | . . . Propulsion . | . . . Utility . | . . . Weapon . | . . . Parts Attached 13 | 7 3 3 Power 3 | 2 . 1 Engine 3 | 2 . 1 Core . | . . . Reactor . | . . . Propulsion 2 | 2 . . Treads 2 | 2 . . Leg . | . . . Wheel . | . . . Hover . | . . . Flight . | . . . Utility 3 | 1 2 . Device . | . . . Storage 3 | 1 2 . Processor . | . . . Hackware . | . . . Protection . | . . . Artifact . | . . . Weapon 5 | 2 1 2 Energy Gun 2 | 2 . . Energy Cannon . | . . . Ballistic Gun 1 | . 1 . Ballistic Cannon 1 | . . 1 Launcher 1 | . . 1 Special Weapon . | . . . Impact Weapon . | . . . Slashing Weapon . | . . . Piercing Weapon . | . . . Special Melee Weapon . | . . . Unidentified Prototypes . | . . . Parts Lost 9 | . 1 8 Power 2 | . . 2 Propulsion 2 | . . 2 Utility . | . . . Weapon 5 | . 1 4 Highest Loss Streak 3 | . 1 3 Average Slot Usage (%) 95 | . 97 95 Engine 13 | . 14 13 Treads 26 | . 28 25 Storage 27 | . 26 28 Energy Gun 8 | . 22 1 Ballistic Gun 10 | . 4 13 Launcher 7 | . . 11 Naked Turns . | . . . Heaviest Build 58 | 12 56 58 Greatest Support 40 | 40 40 40 Greatest Overweight (x) 19 | 2 1 19 Average Overweight (x) 1 | . . 1 Largest Inventory Capacity 18 | 6 18 18 Average Capacity 16 | 5 14 18 Most Carried 16 | 5 16 16 Average Carried 13 | 1 10 14 Final Capacity 18 | 6 18 18 Final Carried 16 | 2 16 15 Class Distribution -------------------- 100% | Mutant Dominant Class ---------------- Mutant | -10/Materials Mutant | -10/Mines Resources | -11 -10 -10 ----------- Run | Scr Mat Min Matter Collected 363 | 146 182 35 Remotely . | . . . Salvage Created 381 | . 216 165 Parts 17 | . 12 5 Haulers Intercepted . | . . . Recyclers Shooed 3 | . 2 1 Parts Field Recycled . | . . . Retrieved Matter . | . . . Parts Self-Destructed . | . . . Prevented . | . . . Kills | -11 -10 -10 ------- Run | Scr Mat Min Combat Hostiles Destroyed 22 | . 4 18 Guns 8 | . 4 4 AOE 14 | . . 14 Classes Destroyed 5 | . 2 3 Recycler 1 | . . 1 Watcher 1 | . 1 . Swarmer 6 | . . 6 Grunt 4 | . 4 . Assembled 12 | . . 12 Best Kill Streak 13 | . 2 13 Combat Bots Only 12 | . 2 12 Max Kills in Single Turn 3 | . 1 3 Gunslinging . | . . . Exploded 3 | . . 3 Melee . | . . . Uniques/NPCs Destroyed . | . . . Combat | -11 -10 -10 -------- Run | Scr Mat Min Damage Taken 1174 | . 311 863 Core 252 | . 21 231 Absorbed by Shields . | . . . Core Remaining (%) 100 | 100 . . Volleys Fired 51 | . 22 29 Largest 2 | . 2 2 Hottest 90 | . 90 60 Shots Fired 89 | . 39 50 Gun 66 | . 39 27 Cannon 2 | . . 2 Launcher 21 | . . 21 Special . | . . . Kinetic 40 | . 12 28 Thermal 28 | . 27 1 Explosive 21 | . . 21 Electromagnetic . | . . . Robot Hit Streak 8 | . 7 8 Robot Miss Streak 5 | . 4 5 Penetration Max . | . . . Secondary Targets . | . . . Shots Hit Robots 41 | . 21 20 Core Hits 53 | . 12 41 Critical Hits . | . . . Critical Kills . | . . . Critical Parts Destroyed . | . . . Melee Attacks . | . . . Impact . | . . . Slashing . | . . . Piercing . | . . . Sneak Attacks . | . . . Combat Hostiles . | . . . Follow-up Attacks . | . . . Damage Inflicted 1502 | . 336 1166 Guns 410 | . 300 110 Cannons 39 | . . 39 Explosions 1017 | . . 1017 Melee . | . . . Ramming 36 | . 36 . Kinetic 200 | . 51 149 Thermal 249 | . 249 . Explosive 1017 | . . 1017 Electromagnetic . | . . . Impact . | . . . Slashing . | . . . Piercing . | . . . Highest Corruption 3 | . 3 3 Average Corruption 2 | . 2 3 Corruption Purged . | . . . Effects 29 | . 5 24 Message Errors 8 | . 1 7 Matter Fused 6 | . 1 5 Heat Flow Errors 5 | . 1 4 Energy Discharges 5 | . 1 4 Data Loss (minor) 1 | . . 1 Targeting Errors 3 | . 1 2 Weapon Failures 1 | . . 1 Overload Shots . | . . . Overflow Damage 24 | . . 24 Projectiles . | . . . Explosions 24 | . . 24 Melee . | . . . Knockbacks 1 | . . 1 Impact . | . . . Kinetic 1 | . . 1 Secondary . | . . . Self-Inflicted Damage 126 | . . 126 Shots 7 | . . 7 Rammed 2 | . 2 . Targets Rammed 2 | . 2 . Kicked . | . . . Crushed . | . . . Highest Temperature 274 | . 230 274 Average Temperature 86 | . 82 92 Received Heat Transfer 414 | . 174 240 Siege Activations . | . . . Robots Corrupted . | . . . Combat Hostiles . | . . . Parts Fried . | . . . Impact Corruptions 1 | . 1 . Robots Melted . | . . . Combat Hostiles . | . . . Parts Melted . | . . . Heat Transferred 586 | . 586 . Parts Sabotaged . | . . . Parts Stolen . | . . . Parts Stripped . | . . . Power Chain Reactions . | . . . Missiles Intercepted . | . . . Alert | -11 -10 -10 ------- Run | Scr Mat Min Peak Influence 130 | . 127 130 Average Influence 16 | . 17 16 Maximum Alert Level . | . . . Low Security (%) 100 | 100 100 100 Level 1 . | . . . Level 2 . | . . . Level 3 . | . . . Level 4 . | . . . Level 5 . | . . . High Security . | . . . Max Security . | . . . Squads Dispatched . | . . . Investigation . | . . . Extermination . | . . . Reinforcement . | . . . Assault . | . . . Garrison . | . . . Intercept . | . . . Construction Impeded . | . . . Haulers Reinforced . | . . . Stealth | -11 -10 -10 --------- Run | Scr Mat Min Distress Signals . | . . . Communications Jammed . | . . . Distress Signals . | . . . Times Spotted 34 | . 8 26 Peak Tracking Total 8 | . 4 8 Tactical Retreats 2 | . 1 1 Traps | -11 -10 -10 ------- Run | Scr Mat Min Traps Triggered 2 | . 2 . Indirectly . | . . . Trap Hack Attempts . | . . . Triggered . | . . . Disarmed . | . . . Reprogrammed . | . . . Reused . | . . . Traps Extracted . | . . . Installed . | . . . Triggered . | . . . Machines | -11 -10 -10 ---------- Run | Scr Mat Min Machines Disabled 1 | . . 1 Max in Single Turn 1 | . . 1 Machines Sabotaged . | . . . Garrisons Compromised . | . . . Overloaded Fab Kills . | . . . Fab Network Shutdowns . | . . . Hacking | -11 -10 -10 --------- Run | Scr Mat Min Machines Accessed . | . . . Terminals . | . . . Fabricators . | . . . Repair Stations . | . . . Recycling Units . | . . . Scanalyzers . | . . . Garrison Access . | . . . Total Hacks . | . . . Successful . | . . . Failed . | . . . Catastrophic . | . . . Database Lockouts . | . . . Manual . | . . . Terminals . | . . . Fabricators . | . . . Repair Stations . | . . . Recycling Units . | . . . Scanalyzers . | . . . Garrison Access . | . . . Terminal Hacks . | . . . Fabricator Hacks . | . . . Repair Station Hacks . | . . . Recycling Unit Hacks . | . . . Scanalyzer . | . . . Garrison Access Hacks . | . . . Unauthorized Hacks . | . . . Terminals . | . . . Fabricators . | . . . Repair Stations . | . . . Recycling Units . | . . . Scanalyzers . | . . . Garrison Access . | . . . Data Cores Recovered . | . . . Used . | . . . Hacking Detections . | . . . Full Trace Events . | . . . Feedback Events . | . . . Feedback Blocked . | . . . Robot Schematics Acquired . | . . . Robots Built . | . . . Matter . | . . . Time . | . . . Total Robot Build Rating . | . . . Part Schematics Acquired . | . . . Parts Built . | . . . Matter . | . . . Time . | . . . Total Part Build Rating . | . . . Parts Repaired . | . . . Time . | . . . Parts Recycled . | . . . Recycled Matter . | . . . Retrieved Matter . | . . . Retrieved Components . | . . . Parts Scanalyzed . | . . . Part Schematics Acquired . | . . . Parts Damaged . | . . . Bothacking | -11 -10 -10 ------------ Run | Scr Mat Min Used RIF Installer . | . . . Robots Hacked . | . . . Non-combat . | . . . Combat . | . . . Robot Hacks Applied . | . . . Relay Couplers Released . | . . . Robots Rewired . | . . . Allies Hacked . | . . . Hacks Repelled . | . . . Allies | -11 -10 -10 -------- Run | Scr Mat Min Total Allies . | . . . Largest Group . | . . . Highest-Rated Group . | . . . Highest-Rated Ally . | . . . Total Orders . | . . . Ally Attacks . | . . . Total Damage . | . . . Kills . | . . . Allies Corrupted . | . . . Allies Melted . | . . . Intel | -11 -10 -10 ------- Run | Scr Mat Min Robot Analysis Total . | . . . Derelict Logs Recovered 2 | . . 2 Drone Launches . | . . . Drone Recoveries . | . . . Exploration | -11 -10 -10 ------------- Run | Scr Mat Min Turns Passed 1783 | 76 493 1214 Spaces Moved 857 | 34 228 595 Core 24 | 17 . 7 Treads 833 | 17 228 588 Legs . | . . . Wheels . | . . . Hover . | . . . Flight . | . . . Fastest Speed 50 | 50 160 180 Average Speed 182 | 125 176 188 Slowest Speed 1000 | 160 180 1000 Overloaded Moves . | . . . Propulsion Burnouts . | . . . Robots Hopped . | . . . Cave-ins Triggered . | . . . Exploration Rate (%) 42 | 4 36 86 Regions Visited 2 Branch Regions 1 Pre-discovered Areas 1 | . . 1 Known Exits Taken . | . . . Unknown Exits Taken 2 | 1 1 . Scrap Searched 1 | . . 1 Spaces Dug . | . . . Terrain Destroyed 114 | . . 114 Melee . | . . . Projectile . | . . . AOE 114 | . . 114 Actions | -11 -10 -10 --------- Run | Scr Mat Min Total 981 | 67 279 635 Wait 32 | 19 7 6 Move 855 | 33 227 595 Hop . | . . . Pick Up 27 | 8 17 2 Fast Attach . | . . . Attach 11 | 6 2 3 Detach . | . . . Swap 2 | 1 1 . Drop 1 | . 1 . Fire 51 | . 22 29 Melee . | . . . Ram . | . . . Kick . | . . . Crush 2 | . 2 . Escape Stasis . | . . . Rewire . | . . . Trap . | . . . Miscellaneous . | . . . Route ------- -11/Scrapyard -10/Materials -10/Mines (discovered 2 exits: *Mat x2) History --------- Turn | Location | Event 28 | -11/Scrapyard | Discovered new exit (range 16) 77 | -11/Scrapyard | Entered Materials 300 | -10/Materials | Build established: Mutant 507 | -10/Materials | Discovered new exit (range 16) 570 | -10/Materials | Entered Mines 587 | -10/Mines | Identified exit to Materials 1058 | -10/Mines | Learned location of Zion (-7) 1312 | -10/Mines | Discovered exit to Materials (range 10) 1327 | -10/Mines | Found a damaged Exp. Sensor Array with a note attached 1330 | -10/Mines | Found Prototype Device 1651 | -10/Mines | Assembled infested the area 1744 | -10/Mines | Destroyed 12 combat bots 1745 | -10/Mines | Core integrity fell below 50% 1759 | -10/Mines | Lost 3 parts (1p2w) 1774 | -10/Mines | Core integrity fell below 20% 1784 | -10/Mines | Destroyed by as-66817 with Assembled Rifle Last Messages --------------- 01732_ K-01 Serf collects debris. 01732_ U-05 Engineer lays Concrete. 01733_ Acquired 5 matter. 01733_ U-05 Engineer lays Concrete. 01734_ The unstable cave ceiling collapses. 01735_ K-01 Serf collects debris. 01735_ U-05 Engineer lays Concrete. 01736_ The unstable cave ceiling collapses. 01736_ U-05 Engineer lays Concrete. 01754_ The unstable cave ceiling collapses. 01754_ U-05 Engineer lays Concrete. 01759_ as-75379 sneak attacks. 01760_ U-05 Engineer lays Concrete. 01769_ U-05 Engineer builds a Wall. 01774_ The unstable cave ceiling collapses. 01776_ Imp. Light Cannon destroyed. 01776_ U-05 Engineer lays Concrete. 01780_ Acquired Wheel. 01782_ RC:3BS9VNWNC1/ITD WI4OYY:HIO2:WS [Achievement: Back For More] Map ----- +----------------------------------------------------+ | | | | | | | | | ?????????????????????????????????????????????????? | | ??????????????????????????????????????????????#### | | ?????????????????????????????????????????????## # | | ?????????????????????????????????????????????# | | ?????????????????????????????????????????????# | | ?????????????????????????????????????????????# | | ?????????????????????????????????????####???## # | | ????????????????????????????????????## ##### ## | | ????????????????????????????????????# ## ##? | | ???????????????? ????????????###### ##?? | | ????????????????? ??????????## ## """ #??? | | ?????????????????? ?????????# """ #??? | | ??????????????????# ?????????## """ #??? | | ??????????????????# ?????????## ## ##### | | ??????????????????# ???????######### # #### | | ??????????????????# #?????# ##????##### #?# | | ???????????????????# ##### #????????# ### | | ????????????????????# #????????# ## | | ???????????????????## #?????????# ## | | ??????????????????## #?????????# ### | | ??????????????????# =%! ##????????# ##?? | | ?????????????????## @ ##???????# ##??? | | ????????????????## ##??????# #???? | | ?????????? #?????## #???? | | ?????????? ## a ##?????# #???? | | ???????????% ?### ###??????# ##??? | | ??????????? #???# # # ###????????## #??? | | ???????????? ?????# # # #??????????## #??? | | ???????????? ??????# # ######???# #??? | | ?????????????# ## a !* #??## #### | | ??????????????# =|%!%#?## | | ???????????????# = !""=### | | ???????????????## ## " #### | | ????????????????# # # "" ##??? | | ???????????????# # # ## ###???? | | ???????????????## # ## #?????? | | ????????????????# ## # # # # ## #?????? | | ????????????????##?##?## # ######### ####?????? | | ???????????????????????########?## ## #????????? | | ????????????????????????????##### ##???????? | | ##############??????????????# ##??????? | | #####????####??# ##?????? | | ##??## #### ##### #?????# | | ######### #??# #???## #?????# | | #??????## #### ### #????## ## #?????# | | ##????## ## ## ##?# #?????##### #?????# | +----------------------------------------------------+ Best States ------------- Heat Dissipation 25 Energy Generation 10 Energy Capacity 250 Matter Stores 300 Matter Capacity 300 Sight Range 16 Terrain Scan Density 10 Evasion (%) 50 Recoil Reduction 2 Item Schematics ----------------- None Robot Schematics ------------------ None Fabricated ------------ Nothing Alien Tech Used ----------------- None Achievements -------------- Back For More Challenges ------------ None Game ------ Seed CompositeShadeChainsword Manual? 0 Play Time 00:14:32 Cumulative 32.7 hours Start 2019.12.12 @ 23:07:25 End 2019.12.14 @ 02:57:21 Sessions 1 Manual Loads 0 Difficulty Rogue Special Mode None Game No. 50 Rogue 34 Adventurer 15 Explorer 1 Win Type - Total 0 Types 0/0/0/0/0/0/0 Lore% 16 Gallery% 28 Achievement% 28 Wizard Run 0 Options --------- ASCII 0 Keyboard 0 Movement Numpad Keybinds 0 Fullscreen 2 Font 32/SmallcapsGlow Map View 76x50 Tactical HUD 1 Map Filters NONE Filters NONE Steam 1 RUN: 7a1876af-5f65-4285-b801-e0cfcdf1a806